[Event "Schachfestival Open-A 2018"]
[Site "Lueneburg"]
[Date "2018.07.06"]
[Round "1"]
[White "Kollhoff, Josef"]
[Black "Bente, Bjoern"]
[Result "0-1"]
[ECO "A46"]
[WhiteElo "1853"]
[BlackElo "2219"]
[Annotator "NA"]
[PlyCount "96"]
[EventDate "2018.07.06"]
[EventType "swiss"]
[EventCountry "GER"]
[SourceTitle "playchess.com"]
[Source "ChessBase"]
[SourceQuality "1"]
[TimeControl "40/5400+30:1800+30"]

{[%evp 9,89,6,32767,32767,32767,32767,32767,32767,32767,-14,-12,-11,0,-12,32767,32767,0,4,0,32767,32767,32767,32767,-25,0,-10,27,0,7,-5,-8,0,24,-12,32767,32767,32767,-41,-38,-39,-38,-45,32767,32767,-28,-29,32767,32767,-17,-37,-27,-32,-23,32767,32767,-33,32767,32767,32767,32767,-41,-99,-101,-154,-170,-179,-163,-196,-210,-394,-305,-364,-448,-910,-1139,-1019,-742,-578,-852,-992,-1257,-1726]} 1. d4 {[%emt 0:00:15]} e6 {[%emt 0:01:45]} 2. Nf3 {[%emt 0:00:34]} Nf6 {[%emt 0:00:09]} 3. e3 {[%emt 0:02:55]} b6 {[%emt 0:02:03]} 4. Bd3 {[%emt 0:01:15]} Bb7 {[%emt 0:00:58]} 5. c4 {[%emt 0:02:36]} c5 {[%emt 0:02:46]} 6. O-O {[%emt 0:00:40]} Be7 {[%emt 0:01:26]} 7. Nc3 {[%emt 0:00:13]} O-O {[%emt 0:00:07]} 8. Re1 {[%emt 0:08:09]} d5 {[%emt 0:01:56]} 9. b3 {[%emt 0:13:14]} Nc6 {[%emt 0:01:41]} 10. Bb2 {[%emt 0:01:48]} cxd4 {[%emt 0:05:25]} 11. exd4 {[%emt 0:01:04] LiveBook: 25 Games} Rc8 {[%emt 0:03:22] E14: Queen's Indian: Classical Variation (4 e3)} (11... Nb4 12. Be2 Rc8 13. Ne5 dxc4 14. bxc4 Ne4 15. Nxe4 Bxe4 16. Bg4 Bc2 17. Qf3 f5 18. Bh5 Ba4 19. d5 exd5 {0-1 (66) Ostovic,M (2352)-Saric,A (2543) Pula 2018}) 12. cxd5 {[%emt 0:15:46]} Nxd5 {[%emt 0:04:24]} 13. Nxd5 {[%emt 0:00:03]} Qxd5 {[%emt 0:00:22]} 14. Be4 {[%emt 0:03:14]} Qh5 {[%emt 0:06:46]} 15. Rc1 {[%emt 0:08:49]} Rfd8 {[%emt 0:08:19]} 16. Qe2 {[%emt 0:03:05]} Bb4 $146 {[%emt 0:02:58]} ({Predecessor:} 16... Ba8 17. a3 Bf6 18. h3 Ne7 19. Rxc8 Rxc8 20. Bxa8 Rxa8 {½-½ (43) Hottes,D (2080)-Baumbach,F (2146) Berlin 2012}) 17. Red1 {[%emt 0:17:48]} Re8 {[%emt 0:07:57]} 18. Qe3 {[%emt 0:01:43]} Ba8 {[%emt 0:10:31]} 19. Rc4 {[%emt 0:04:46]} b5 $1 {[%emt 0:00:24]} 20. Rcc1 {[%emt 0:03:09]} Bf8 {[%emt 0:05:14]} 21. a3 {[%emt 0:03:15]} Ne7 {[%emt 0:04:37]} 22. Bxa8 {[%emt 0:00:57]} Rxa8 {[%emt 0:00:09]} 23. Qg5 {[%emt 0:01:15]} Qxg5 {[%emt 0:01:20]} 24. Nxg5 {[%emt 0:00:00]} Nd5 {[%emt 0:01:20]} 25. g3 {[%emt 0:01:12]} Rec8 {[%emt 0:01:19]} 26. Rxc8 {[%emt 0:00:08]} Rxc8 {[%emt 0:00:05]} 27. Rc1 {[%emt 0:00:03]} Rxc1+ {[%emt 0:00:09]} 28. Bxc1 {[%emt 0:00:04]} Nc3 {[%emt 0:00:41]} 29. Kf1 {[%emt 0:00:40]} Be7 {[%emt 0:00:33]} 30. Nf3 {[%emt 0:00:08]} f6 {[%emt 0:00:31]} 31. Bb2 {[%emt 0:00:36]} Nd5 {[%emt 0:00:47]} 32. Ke2 {[%emt 0:00:04]} Kf7 {[%emt 0:00:11]} 33. h4 {[%emt 0:00:37]} a5 {[%emt 0:01:38]} 34. Kd3 {[%emt 0:00:27]} Kg6 {[%emt 0:02:08]} 35. Ng1 {[%emt 0:01:26]} ({White should play} 35. Nd2 $15) 35... Kf5 {[%emt 0:00:57]} 36. Ne2 {[%emt 0:01:19]} (36. Nf3 $142) 36... Kg4 {[%emt 0:00:49]} 37. Ng1 {[%emt 0:00:56]} h5 {[%emt 0:00:28]} 38. Bc1 (38. Ke2 $17) 38... f5 {[%emt 0:03:19]} 39. Bb2 $2 {[%emt 0:03:41]} (39. a4 b4 40. Bd2) 39... f4 {[%emt 0:01:05]} 40. Ne2 {[%emt 0:00:30]} Kf3 {[%emt 0:00:33]} 41. Nxf4 {[%emt 0:31:20]} (41. a4 $142 bxa4 42. bxa4) 41... Nxf4+ {[%emt 0:31:23]} 42. gxf4 {[%emt 0:00:00]} Bxh4 {[%emt 0:00:00]} 43. d5 {[%emt 0:00:00]} exd5 {[%emt 0:00:00]} 44. Bxg7 {[%emt 0:00:00]} Kxf4 {[%emt 0:00:00]} 45. Kd4 $19 {[%emt 0:00:00]} Bxf2+ {[%emt 0:00:00]} 46. Kxd5 {[%emt 0:00:00]} h4 {[%emt 0:00:00]} 47. Be5+ {[%emt 0:00:00]} Kf3 {[%emt 0:00:00]} 48. Bh2 {[%emt 0:00:00]} Kg2 {Kd4} 0-1

[Event "Schachfestival Open-A 2018"]
[Site "Lueneburg"]
[Date "2018.07.06"]
[Round "1"]
[White "Rothenberg, Jannik"]
[Black "Simantsev, Mikhail"]
[Result "0-1"]
[ECO "E10"]
[WhiteElo "1756"]
[BlackElo "2434"]
[Annotator "ChessBase"]
[PlyCount "110"]
[EventDate "2018.07.06"]
[EventType "swiss"]
[EventCountry "GER"]
[SourceTitle "playchess.com"]
[Source "ChessBase"]
[SourceQuality "1"]
[TimeControl "40/5400+30:1800+30"]

1. d4 {[%emt 0:00:00]} Nf6 {[%emt 0:08:06]} 2. c4 {[%emt 0:00:00]} e6 {[%emt 0:03:14]} 3. Nf3 {[%emt 0:01:04]} c5 {[%emt 0:00:50]} 4. d5 {[%emt 0:00:20]} exd5 {[%emt 0:07:04]} 5. cxd5 {[%emt 0:00:58]} Bd6 {[%emt 0:00:03]} 6. Nc3 {[%emt 0:06:38]} Bc7 {[%emt 0:01:02]} 7. e4 {[%emt 0:08:22]} d6 {[%emt 0:03:43]} 8. h3 {[%emt 0:02:39]} O-O {[%emt 0:01:25]} 9. Bd3 {[%emt 0:04:46]} a6 {[%emt 0:04:04]} 10. a4 {[%emt 0:01:48]} Nbd7 {[%emt 0:02:29]} 11. O-O {[%emt 0:02:17]} Re8 {[%emt 0:01:31]} 12. Bf4 {[%emt 0:03:55]} Nf8 {[%emt 0:06:39]} 13. Nd2 {[%emt 0:03:36]} Ng6 {[%emt 0:05:47]} 14. Bh2 {[%emt 0:01:58]} Rb8 {[%emt 0:09:56]} 15. Re1 {[%emt 0:05:15]} Ne5 {[%emt 0:04:11]} 16. Bxe5 {[%emt 0:04:14]} Rxe5 {[%emt 0:09:07]} 17. Nc4 {[%emt 0:03:17]} Re8 {[%emt 0:01:20]} 18. a5 {[%emt 0:01:48]} Nd7 {[%emt 0:09:06]} 19. f4 {[%emt 0:05:37]} b5 {[%emt 0:03:41]} 20. axb6 {[%emt 0:00:25]} Nxb6 {[%emt 0:00:07]} 21. Nxb6 {[%emt 0:09:33]} Rxb6 {[%emt 0:02:37]} 22. Qe2 {[%emt 0:02:39]} a5 {[%emt 0:07:22]} 23. Kh1 {[%emt 0:03:36]} Rb4 {[%emt 0:00:38]} 24. Ra4 {[%emt 0:09:56]} Bd7 {[%emt 0:00:30]} 25. Rxb4 {[%emt 0:01:16]} cxb4 {[%emt 0:00:37]} 26. Nb5 {[%emt 0:01:08]} Bb8 {[%emt 0:00:05]} 27. Qf2 {[%emt 0:02:57]} a4 {[%emt 0:01:11]} 28. Na7 {[%emt 0:02:29]} Bc7 {[%emt 0:05:03]} 29. Nc6 {[%emt 0:01:37]} Qa8 {[%emt 0:00:04]} 30. Rc1 {[%emt 0:01:03]} Qb7 {[%emt 0:01:10]} 31. Qc2 {[%emt 0:01:38]} a3 {[%emt 0:01:34]} 32. bxa3 {[%emt 0:00:36]} bxa3 {[%emt 0:00:01]} 33. Rb1 {[%emt 0:00:37]} Qc8 {[%emt 0:01:17]} 34. Qa4 {[%emt 0:00:26]} Bxh3 {[%emt 0:00:34]} 35. f5 {[%emt 0:02:19]} Bg4 {[%emt 0:00:13]} 36. Ba6 {[%emt 0:01:02]} Qd7 {[%emt 0:00:34]} 37. Bd3 {[%emt 0:03:32]} Bd8 {[%emt 0:00:53]} 38. Rb8 {[%emt 0:01:09]} Kf8 {[%emt 0:00:31]} 39. Qxa3 {[%emt 0:00:20]} Be7 {[%emt 0:00:29]} 40. Rxe8+ {[%emt 0:02:12]} Qxe8 {[%emt 0:00:03]} 41. Nxe7 {[%emt 0:00:34]} Qxe7 {[%emt 0:03:46]} 42. Qb4 {[%emt 0:08:54]} Qh4+ {[%emt 0:10:57]} 43. Kg1 {[%emt 0:00:01]} Qg3 {[%emt 0:00:00]} 44. Qb8+ {[%emt 0:11:34]} Ke7 {[%emt 0:00:03]} 45. Qc7+ {[%emt 0:00:13]} Kf6 {[%emt 0:00:22]} 46. Qd8+ {[%emt 0:00:08]} Ke5 {[%emt 0:00:19]} 47. Qg5 {[%emt 0:00:18]} f6 {[%emt 0:15:56]} 48. Qd2 {[%emt 0:04:28]} h5 {[%emt 0:01:45]} 49. Bb1 {[%emt 0:03:55]} h4 {[%emt 0:00:26]} 50. Kh1 {[%emt 0:01:54]} h3 {[%emt 0:00:19]} 51. Qb2+ {[%emt 0:00:13]} Kf4 {[%emt 0:00:07]} 52. Qd2+ {[%emt 0:00:05]} Qe3 {[%emt 0:00:20]} 53. Qxe3+ {[%emt 0:00:43]} Kxe3 {[%emt 0:00:02]} 54. Kh2 {[%emt 0:02:09]} hxg2 {[%emt 0:00:14]} 55. Kxg2 {[%emt 0:00:10]} Bf3+ {[%emt 0:00:01]} 0-1

[Event "Schachfestival Open-A 2018"]
[Site "Lueneburg"]
[Date "2018.07.06"]
[Round "1"]
[White "Lau, Felix"]
[Black "Malakhatko, Vadim"]
[Result "0-1"]
[ECO "B23"]
[WhiteElo "1534"]
[BlackElo "2499"]
[Annotator "ChessBase"]
[PlyCount "64"]
[EventDate "2018.07.06"]
[EventType "swiss"]
[EventCountry "GER"]
[SourceTitle "playchess.com"]
[Source "ChessBase"]
[SourceQuality "1"]
[TimeControl "40/5400+30:1800+30"]

1. e4 {[%emt 0:00:00]} c5 {[%emt 0:00:00]} 2. Nc3 {[%emt 0:00:00]} e6 {[%emt 0:00:02]} 3. f4 {[%emt 0:01:40]} Nc6 {[%emt 0:00:15]} 4. Bb5 {[%emt 0:00:26]} Nge7 {[%emt 0:00:16]} 5. Nf3 {[%emt 0:03:03]} a6 {[%emt 0:00:07]} 6. Bxc6 {[%emt 0:01:57]} Nxc6 {[%emt 0:00:07]} 7. O-O {[%emt 0:05:37]} Be7 {[%emt 0:05:26]} 8. d3 {[%emt 0:03:58]} O-O {[%emt 0:00:18]} 9. Qe1 {[%emt 0:02:53]} b5 {[%emt 0:02:22]} 10. Qg3 {[%emt 0:10:41]} d5 {[%emt 0:03:03]} 11. Ne5 {[%emt 0:04:00]} Nd4 {[%emt 0:02:19]} 12. Qf2 Bb7 13. exd5 {[%emt 0:05:33]} exd5 {[%emt 0:07:33]} 14. Be3 Nxc2 {[%emt 0:04:21]} 15. Qxc2 {[%emt 0:03:10]} d4 {[%emt 0:00:08]} 16. Nxb5 {[%emt 0:07:15]} axb5 {[%emt 0:03:20]} 17. Bc1 Qd5 {[%emt 0:00:36]} 18. b3 {[%emt 0:02:20]} Rfe8 {[%emt 0:02:14]} 19. a4 {[%emt 0:02:44]} f6 {[%emt 0:00:58]} 20. Nf3 {[%emt 0:00:53]} Bd6 {[%emt 0:00:08]} 21. Bd2 {[%emt 0:07:07]} Bc6 {[%emt 0:04:03]} 22. Rfc1 {[%emt 0:07:33]} Re2 {[%emt 0:01:25]} 23. Qd1 {[%emt 0:01:59]} Rae8 {[%emt 0:05:34]} 24. Kf1 {[%emt 0:00:22]} R2e7 {[%emt 0:02:32]} 25. Qc2 {[%emt 0:01:32]} Qh5 {[%emt 0:01:08]} 26. Qd1 {[%emt 0:07:16]} Qf5 {[%emt 0:00:17]} 27. Ne1 {[%emt 0:05:59]} Bxf4 {[%emt 0:03:06]} 28. Bxf4 {[%emt 0:02:28]} Qxf4+ {[%emt 0:00:13]} 29. Nf3 {[%emt 0:03:42]} Re3 30. Rxc5 Bxf3 {[%emt 0:01:03]} 31. gxf3 {[%emt 0:00:32]} Qxh2 {[%emt 0:00:22]} 32. Rc2 {[%emt 0:02:54]} Re1+ {[%emt 0:00:35]} 0-1

[Event "Schachfestival Open-A 2018"]
[Site "Lueneburg"]
[Date "2018.07.06"]
[Round "2"]
[White "Malakhatko, Vadim"]
[Black "Jolowicz, Matias"]
[Result "1-0"]
[ECO "E91"]
[WhiteElo "2499"]
[BlackElo "2100"]
[Annotator "ChessBase"]
[PlyCount "61"]
[EventDate "2018.07.06"]
[EventType "swiss"]
[EventCountry "GER"]
[SourceTitle "playchess.com"]
[Source "ChessBase"]
[SourceQuality "1"]
[TimeControl "40/5400+30:1800+30"]

1. c4 {[%emt 0:00:00]} Nf6 {[%emt 0:00:00]} 2. Nf3 {[%emt 0:00:10]} g6 {[%emt 0:00:00]} 3. Nc3 {[%emt 0:00:07]} Bg7 {[%emt 0:00:00]} 4. e4 {[%emt 0:00:08]} d6 {[%emt 0:00:02]} 5. d4 {[%emt 0:00:06]} O-O {[%emt 0:00:03]} 6. Be2 {[%emt 0:00:11]} Na6 {[%emt 0:00:08]} 7. O-O {[%emt 0:00:27]} e5 {[%emt 0:00:05]} 8. Be3 {[%emt 0:00:58]} Ng4 {[%emt 0:01:51]} 9. Bg5 {[%emt 0:04:20]} Qe8 {[%emt 0:02:53]} 10. h3 {[%emt 0:00:22]} exd4 {[%emt 0:00:09]} 11. Nxd4 {[%emt 0:00:10]} Ne5 {[%emt 0:00:24]} 12. Ndb5 {[%emt 0:10:40]} h6 {[%emt 0:04:19]} 13. Be3 {[%emt 0:00:17]} Be6 {[%emt 0:04:01]} 14. Nd5 {[%emt 0:03:51]} Qd8 {[%emt 0:01:01]} 15. f4 {[%emt 0:00:55]} Nd7 {[%emt 0:01:00]} 16. f5 {[%emt 0:00:21]} Bxd5 {[%emt 0:00:08]} 17. cxd5 {[%emt 0:00:05]} Nac5 {[%emt 0:00:59]} 18. Qc2 {[%emt 0:05:25]} a6 {[%emt 0:02:41]} 19. Nd4 {[%emt 0:00:48]} Qh4 {[%emt 0:02:35]} 20. Rf4 {[%emt 0:32:25]} Qg3 {[%emt 0:00:49]} 21. Qd2 {[%emt 0:01:06]} Be5 {[%emt 0:06:07]} 22. Nf3 {[%emt 0:02:37]} Nf6 {[%emt 0:04:41]} 23. Nxe5 {[%emt 0:04:29]} Ncxe4 {[%emt 0:03:01]} 24. Nd7 {[%emt 0:10:40]} Nxd2 {[%emt 0:01:20]} 25. Nxf6+ {[%emt 0:04:03]} Kg7 {[%emt 0:00:29]} 26. Bd4 {[%emt 0:01:57]} Qxf4 {[%emt 0:01:29]} 27. Nh5+ {[%emt 0:00:06]} Kh7 {[%emt 0:00:14]} 28. Nxf4 {[%emt 0:00:07]} Rae8 {[%emt 0:01:02]} 29. Bd3 {[%emt 0:00:50]} Ne4 {[%emt 0:00:11]} 30. fxg6+ {[%emt 0:00:12]} fxg6 {[%emt 0:00:02]} 31. Ne6 {[%emt 0:00:16]} 1-0

[Event "Schachfestival Open-A 2018"]
[Site "Lueneburg"]
[Date "2018.07.06"]
[Round "2"]
[White "Sebastian, Dirk"]
[Black "Matzat, Andre"]
[Result "1-0"]
[ECO "A36"]
[WhiteElo "2447"]
[BlackElo "2081"]
[Annotator "ChessBase"]
[PlyCount "137"]
[EventDate "2018.07.06"]
[EventType "swiss"]
[EventCountry "GER"]
[SourceTitle "playchess.com"]
[Source "ChessBase"]
[SourceQuality "1"]
[TimeControl "40/5400+30:1800+30"]

1. c4 {[%emt 0:00:00]} c5 {[%emt 0:00:00]} 2. g3 {[%emt 0:00:00]} Nc6 {[%emt 0:00:00]} 3. Bg2 {[%emt 0:00:00]} g6 {[%emt 0:00:15]} 4. Nc3 {[%emt 0:00:03]} Bg7 {[%emt 0:00:09]} 5. a3 {[%emt 0:00:19]} d6 {[%emt 0:01:02]} 6. Rb1 {[%emt 0:01:55]} a5 {[%emt 0:00:22]} 7. d3 {[%emt 0:00:51]} e5 {[%emt 0:00:47]} 8. Nf3 {[%emt 0:05:53]} Nge7 {[%emt 0:00:25]} 9. Bd2 {[%emt 0:00:24]} Rb8 {[%emt 0:04:28]} 10. O-O {[%emt 0:01:15]} O-O {[%emt 0:00:08]} 11. Nb5 {[%emt 0:02:06]} d5 {[%emt 0:03:54]} 12. cxd5 {[%emt 0:01:25]} Nxd5 {[%emt 0:00:28]} 13. Ng5 {[%emt 0:14:31]} b6 {[%emt 0:22:46]} 14. Ne4 {[%emt 0:14:03]} h6 {[%emt 0:14:17]} 15. Nbd6 {[%emt 0:25:20]} Be6 {[%emt 0:00:59]} 16. Nc4 {[%emt 0:00:35]} Qd7 {[%emt 0:04:57]} 17. Rc1 {[%emt 0:03:18]} Nd4 {[%emt 0:06:30]} 18. Nc3 {[%emt 0:05:57]} Ne7 {[%emt 0:12:34]} 19. a4 {[%emt 0:04:35]} Kh7 {[%emt 0:02:13]} 20. Be3 {[%emt 0:01:31]} Bh3 {[%emt 0:06:46]} 21. Bxd4 {[%emt 0:00:52]} Bxg2 {[%emt 0:02:27]} 22. Kxg2 {[%emt 0:00:25]} exd4 {[%emt 0:02:38]} 23. Ne4 {[%emt 0:01:31]} Nd5 {[%emt 0:00:55]} 24. Re1 {[%emt 0:02:10]} Rfe8 {[%emt 0:03:43]} 25. Qb3 {[%emt 0:02:17]} Qg4 {[%emt 0:02:34]} 26. Kh1 {[%emt 0:04:48]} Qd7 {[%emt 0:03:49]} 27. Kg1 {[%emt 0:03:32]} f5 {[%emt 0:00:58]} 28. Ned2 {[%emt 0:00:29]} Re6 {[%emt 0:00:21]} 29. Nf3 {[%emt 0:01:30]} Rbe8 {[%emt 0:00:24]} 30. Kf1 {[%emt 0:00:52]} Bf6 {[%emt 0:00:21]} 31. Na3 {[%emt 0:00:43]} Kg7 {[%emt 0:00:35]} 32. Nc4 {[%emt 0:00:29]} h5 {[%emt 0:01:33]} 33. Ncd2 {[%emt 0:00:49]} g5 {[%emt 0:00:42]} 34. Nc4 {[%emt 0:00:46]} g4 {[%emt 0:00:34]} 35. Ng1 {[%emt 0:00:15]} Bg5 {[%emt 0:00:17]} 36. Ra1 {[%emt 0:00:22]} h4 {[%emt 0:00:57]} 37. Qb5 {[%emt 0:01:43]} Qc7 {[%emt 0:01:33]} 38. Qb3 {[%emt 0:00:15]} R8e7 {[%emt 0:00:18]} 39. Nxa5 {[%emt 0:00:39]} Nb4 {[%emt 0:00:58]} 40. Nc4 {[%emt 0:00:11]} Qc6 {[%emt 0:00:14]} 41. f3 {[%emt 0:06:11]} Qc7 {[%emt 0:03:46]} 42. Kg2 {[%emt 0:09:02]} f4 {[%emt 0:02:31]} 43. h3 {[%emt 0:10:31]} fxg3 {[%emt 0:07:01]} 44. e4 {[%emt 0:02:53]} dxe3 {[%emt 0:01:21]} 45. hxg4 {[%emt 0:00:46]} Nd5 {[%emt 0:03:06]} 46. Nh3 {[%emt 0:00:02]} Nf4+ {[%emt 0:01:16]} 47. Nxf4 {[%emt 0:00:02]} Bxf4 {[%emt 0:00:17]} 48. Rh1 {[%emt 0:01:55]} e2 {[%emt 0:00:51]} 49. Rae1 {[%emt 0:01:10]} Bg5 {[%emt 0:00:41]} 50. Qc3+ {[%emt 0:00:19]} Bf6 {[%emt 0:00:24]} 51. Qc1 {[%emt 0:00:43]} Qd7 {[%emt 0:00:54]} 52. g5 {[%emt 0:00:43]} Bd4 {[%emt 0:00:40]} 53. Rxh4 {[%emt 0:00:39]} Bf2 {[%emt 0:00:19]} 54. Qc3+ {[%emt 0:00:32]} Bd4 {[%emt 0:00:56]} 55. Qc2 {[%emt 0:00:29]} Qd5 {[%emt 0:01:21]} 56. Nd2 {[%emt 0:01:24]} Bf2 {[%emt 0:01:10]} 57. d4 {[%emt 0:00:11]} Rg6 {[%emt 0:01:50]} 58. Re4 {[%emt 0:02:08]} Rxe4 {[%emt 0:04:31]} 59. fxe4 {[%emt 0:00:01]} Qxg5 {[%emt 0:02:18]} 60. Nf3 {[%emt 0:00:47]} Qf4 {[%emt 0:03:55]} 61. Rxe2 {[%emt 0:00:40]} cxd4 {[%emt 0:00:27]} 62. e5 {[%emt 0:00:14]} Be3 {[%emt 0:00:23]} 63. Qc7+ {[%emt 0:00:26]} Qf7 {[%emt 0:00:30]} 64. Qc8 {[%emt 0:00:57]} Qd5 {[%emt 0:01:31]} 65. Rc2 {[%emt 0:00:26]} Kh7 {[%emt 0:00:53]} 66. Rc7+ {[%emt 0:00:19]} Rg7 {[%emt 0:00:09]} 67. Qf5+ {[%emt 0:00:12]} Kh8 {[%emt 0:01:02]} 68. Qh5+ {[%emt 0:00:14]} Kg8 {[%emt 0:00:15]} 69. Rc8+ {[%emt 0:00:09]} 1-0

[Event "Schachfestival Open-A 2018"]
[Site "Lueneburg"]
[Date "2018.07.06"]
[Round "2"]
[White "Simantsev, Mikhail"]
[Black "Marxen, Peter"]
[Result "1-0"]
[ECO "E11"]
[WhiteElo "2434"]
[BlackElo "2068"]
[Annotator "ChessBase"]
[PlyCount "50"]
[EventDate "2018.07.06"]
[EventType "swiss"]
[EventCountry "GER"]
[SourceTitle "playchess.com"]
[Source "ChessBase"]
[SourceQuality "1"]
[TimeControl "40/5400+30:1800+30"]

1. d4 {[%emt 0:13:30]} Nf6 {[%emt 0:00:42]} 2. c4 {[%emt 0:01:05]} e6 {[%emt 0:00:10]} 3. Nf3 {[%emt 0:01:42]} Bb4+ {[%emt 0:00:56]} 4. Nbd2 {[%emt 0:04:58]} O-O {[%emt 0:01:54]} 5. a3 {[%emt 0:00:13]} Be7 {[%emt 0:00:51]} 6. e3 {[%emt 0:02:38]} d5 {[%emt 0:00:22]} 7. Bd3 {[%emt 0:02:28]} c5 {[%emt 0:05:54]} 8. dxc5 {[%emt 0:12:07]} dxc4 {[%emt 0:02:14]} 9. Nxc4 {[%emt 0:01:28]} Bxc5 {[%emt 0:01:55]} 10. b4 {[%emt 0:04:58]} Be7 {[%emt 0:00:20]} 11. Bb2 {[%emt 0:00:04]} b6 {[%emt 0:13:33]} 12. O-O {[%emt 0:16:46]} Bb7 {[%emt 0:00:29]} 13. Qe2 {[%emt 0:01:37]} Nbd7 {[%emt 0:14:53]} 14. Rfd1 {[%emt 0:03:18]} Qc7 {[%emt 0:09:01]} 15. Rac1 {[%emt 0:00:48]} Qb8 {[%emt 0:09:32]} 16. Nce5 {[%emt 0:10:47]} Nxe5 {[%emt 0:00:26]} 17. Nxe5 {[%emt 0:00:14]} Rc8 {[%emt 0:01:54]} 18. b5 {[%emt 0:04:46]} Rxc1 {[%emt 0:03:58]} 19. Rxc1 {[%emt 0:00:02]} Qd6 {[%emt 0:04:25]} 20. Nc6 {[%emt 0:02:50]} Bf8 {[%emt 0:07:50]} 21. e4 {[%emt 0:01:49]} Qf4 {[%emt 0:02:37]} 22. Rc4 {[%emt 0:03:52]} Qh6 {[%emt 0:04:46]} 23. e5 {[%emt 0:00:53]} Nd5 {[%emt 0:05:20]} 24. Bc1 {[%emt 0:00:18]} g5 {[%emt 0:00:44]} 25. Bxg5 {[%emt 0:00:24]} Nc3 1-0

[Event "Schachfestival Open-A 2018"]
[Site "Lueneburg"]
[Date "2018.07.06"]
[Round "2"]
[White "Sriram, Jha"]
[Black "Popvasilev, Kaloyan"]
[Result "1-0"]
[ECO "A05"]
[WhiteElo "2409"]
[BlackElo "2020"]
[Annotator "ChessBase"]
[PlyCount "65"]
[EventDate "2018.07.06"]
[EventType "swiss"]
[EventCountry "GER"]
[SourceTitle "playchess.com"]
[Source "ChessBase"]
[SourceQuality "1"]
[TimeControl "40/5400+30:1800+30"]

1. Nf3 {[%emt 0:05:22]} Nf6 {[%emt 0:00:05]} 2. g3 {[%emt 0:00:24]} e6 {[%emt 0:00:36]} 3. Bg2 {[%emt 0:00:25]} d5 {[%emt 0:01:01]} 4. O-O {[%emt 0:00:17]} Nbd7 {[%emt 0:02:34]} 5. c4 {[%emt 0:01:54]} dxc4 {[%emt 0:01:56]} 6. Qa4 {[%emt 0:00:30]} a6 {[%emt 0:01:21]} 7. Qxc4 {[%emt 0:01:23]} c5 {[%emt 0:01:17]} 8. Qc2 {[%emt 0:01:00]} Qc7 {[%emt 0:03:40]} 9. d3 {[%emt 0:08:53]} b5 {[%emt 0:04:36]} 10. b3 {[%emt 0:28:53]} Bb7 {[%emt 0:02:09]} 11. Bb2 {[%emt 0:01:09]} Bd6 {[%emt 0:08:22]} 12. Nbd2 {[%emt 0:00:24]} O-O {[%emt 0:02:04]} 13. Rac1 {[%emt 0:01:38]} Rac8 {[%emt 0:01:01]} 14. Qb1 {[%emt 0:00:25]} Qb8 {[%emt 0:05:23]} 15. Qa1 {[%emt 0:02:31]} Qa8 {[%emt 0:04:08]} 16. Rfd1 {[%emt 0:01:46]} Rfd8 {[%emt 0:01:34]} 17. e4 {[%emt 0:10:52]} Be7 {[%emt 0:06:35]} 18. Ne1 {[%emt 0:00:23]} Nb8 {[%emt 0:06:35]} 19. e5 {[%emt 0:16:17]} Ne8 {[%emt 0:11:58]} 20. Ne4 {[%emt 0:03:18]} c4 {[%emt 0:11:41]} 21. bxc4 {[%emt 0:00:05]} bxc4 {[%emt 0:00:23]} 22. Qb1 {[%emt 0:00:18]} cxd3 {[%emt 0:07:51]} 23. Rxc8 {[%emt 0:00:03]} Rxc8 {[%emt 0:01:02]} 24. Qxd3 {[%emt 0:00:11]} Nc6 {[%emt 0:01:35]} 25. Qe3 {[%emt 0:05:03]} Na5 {[%emt 0:03:43]} 26. Qf4 {[%emt 0:02:58]} Rd8 {[%emt 0:03:09]} 27. Nd6 {[%emt 0:01:37]} Nxd6 {[%emt 0:01:08]} 28. exd6 {[%emt 0:00:17]} Bf8 {[%emt 0:00:24]} 29. Nf3 {[%emt 0:01:57]} Nc4 {[%emt 0:05:32]} 30. Ng5 {[%emt 0:01:19]} Bxg2 {[%emt 0:00:34]} 31. Qxf7+ {[%emt 0:00:24]} Kh8 {[%emt 0:00:03]} 32. Qxe6 {[%emt 0:01:40]} h6 {[%emt 0:01:21]} 33. Qxh6+ {[%emt 0:00:04]} 1-0

[Event "Schachfestival Open-A 2018"]
[Site "Lueneburg"]
[Date "2018.07.06"]
[Round "2"]
[White "Bente, Bjoern"]
[Black "Wobbe, Sven"]
[Result "1-0"]
[ECO "B43"]
[WhiteElo "2219"]
[BlackElo "2049"]
[Annotator "NA"]
[PlyCount "65"]
[EventDate "2018.07.06"]
[EventType "swiss"]
[EventCountry "GER"]
[SourceTitle "playchess.com"]
[Source "ChessBase"]
[SourceQuality "1"]
[TimeControl "40/5400+30:1800+30"]

1. e4 {[%emt 0:00:00]} c5 {[%emt 0:00:00]} 2. Nf3 {[%emt 0:00:00]} e6 {[%emt 0:00:25]} 3. d4 {[%emt 0:00:00]} cxd4 {[%emt 0:00:08]} 4. Nxd4 {[%emt 0:00:00]} a6 {[%emt 0:00:17]} 5. Nc3 {[%emt 0:00:06]} Qc7 {[%emt 0:01:30]} 6. g3 {[%emt 0:00:08]} Nf6 {[%emt 0:02:42]} 7. Bg2 {[%emt 0:00:05]} Be7 {[%emt 0:05:06]} 8. O-O {[%emt 0:00:08]} d6 {[%emt 0:01:02]} 9. f4 {[%emt 0:05:40]} Nc6 {[%emt 0:05:50]} 10. Nb3 {[%emt 0:01:42]} O-O {[%emt 0:01:23]} 11. g4 {[%emt 0:01:58]} Nd7 {[%emt 0:14:02]} 12. Be3 {[%emt 0:06:14]} b5 {[%emt 0:04:46]} 13. Qe1 {[%emt 0:01:57]} Bb7 {[%emt 0:02:39]} 14. Rd1 {[%emt 0:02:23]} Nb6 {[%emt 0:06:26]} 15. Qg3 {[%emt 0:03:19]} Nc4 {[%emt 0:01:09]} 16. Bc1 {[%emt 0:00:03]} Rad8 {[%emt 0:08:41]} 17. g5 {[%emt 0:00:54]} Rfe8 {[%emt 0:02:54]} 18. f5 {[%emt 0:08:46]} N6e5 {[%emt 0:01:12]} 19. fxe6 {[%emt 0:02:57]} fxe6 {[%emt 0:00:57]} 20. Nd4 {[%emt 0:00:05]} Bc8 {[%emt 0:04:15]} 21. Kh1 {[%emt 0:04:05]} Na5 {[%emt 0:10:45]} 22. Nce2 {[%emt 0:03:35]} Nac6 {[%emt 0:00:47]} 23. c3 {[%emt 0:00:29]} Bf8 {[%emt 0:07:17]} 24. Nf4 {[%emt 0:01:38]} g6 {[%emt 0:02:05]} 25. Bh3 {[%emt 0:01:04]} Nxd4 {[%emt 0:09:22]} 26. cxd4 {[%emt 0:01:08]} Nc4 {[%emt 0:00:35]} 27. d5 {[%emt 0:01:04]} e5 {[%emt 0:04:23]} 28. Ne6 {[%emt 0:00:08]} Bxe6 {[%emt 0:00:52]} 29. Bxe6+ {[%emt 0:00:10]} Kh8 {[%emt 0:00:18]} 30. Rf7 {[%emt 0:00:35]} Re7 {[%emt 0:00:46]} 31. Rdf1 {[%emt 0:00:42]} Rxf7 {[%emt 0:02:11]} 32. Rxf7 {[%emt 0:00:08]} Be7 {[%emt 0:00:38]} 33. Rxh7+ {[%emt 0:00:24]} 1-0